bitfinex/quotes_BTCUSD_20260310
["timestamp","ask_amount","ask_price","bid_price","bid_amount"]
[1773123393609,0.10154061,69891.0,69882.0,0.07154885]
[1773123394614,0.10154061,69891.0,69881.0,0.00144]
[1773123394982,0.01893235,69888.0,69880.0,0.0002]
[1773123395157,0.04893235,69885.0,69880.0,0.0002]
[1773123395574,0.03,69883.0,69878.0,0.0002]
[1773123396275,0.03,69883.0,69877.0,0.0003976]
[1773123397627,0.03,69881.0,69877.0,0.0003976]
[1773123398684,0.03,69881.0,69873.0,0.0002]
[1773123398685,0.03,69875.0,69860.0,0.02793293]
[1773123398876,0.12587446,69880.0,69849.0,0.07158225]
[1773123398877,0.01893235,69868.0,69852.0,0.07157991]
[1773123399170,0.03144,69867.0,69852.0,0.09150594]
[1773123399759,0.03,69865.0,69854.0,0.07157786]
[1773123399915,0.03,69861.0,69851.0,0.00012]
[1773123400122,0.03,69861.0,69851.0,0.07170053]
[1773123400745,0.08458089,69861.0,69851.0,0.07170004]
[1773123400946,0.03,69861.0,69851.0,0.09286867]
[1773123401147,0.03,69860.0,69851.0,0.09286867]
[1773123401350,0.03,69860.0,69851.0,0.09286923]
[1773123401547,0.03,69858.0,69850.0,0.00023]
[1773123401751,0.03,69856.0,69850.0,0.00023]
[1773123402674,0.07157181,69860.0,69850.0,0.00023]
[1773123402675,0.07157181,69860.0,69851.0,0.07158093]
[1773123402875,0.03,69859.0,69850.0,0.00023]
[1773123404078,0.03,69857.0,69850.0,0.00023]
[1773123404896,0.03,69855.0,69850.0,0.00023]
[1773123405096,0.03,69853.0,69838.0,0.09512393]
[1773123405398,0.03,69847.0,69838.0,0.0235306]
[1773123405599,0.05045091,69847.0,69838.0,0.0235306]
[1773123405785,0.03,69845.0,69838.0,0.0235306]
[1773123406203,0.10158807,69845.0,69838.0,0.0235306]
[1773123407260,0.12203898,69845.0,69834.0,0.0002092]
[1773123407461,0.00144,69848.0,69836.0,0.02116863]
[1773123407679,0.02045091,69858.0,69838.0,0.12747189]
[1773123407881,0.00144,69857.0,69842.0,0.12747189]
[1773123408057,0.00144,69857.0,69845.0,0.02116863]
[1773123408382,0.00144,69857.0,69847.0,0.07158503]
[1773123408542,0.03,69857.0,69847.0,0.07158503]
[1773123408742,0.03,69857.0,69850.0,0.02116863]
[1773123409582,0.03,69857.0,69849.0,0.12747189]
[1773123410453,0.03,69856.0,69850.0,0.07158196]
[1773123410656,0.00144,69858.0,69850.0,0.09275059]
[1773123410857,0.07156249,69869.0,69851.0,0.12747189]
[1773123411091,0.07156142,69871.0,69855.0,0.12747189]
[1773123411438,0.03,69870.0,69859.0,0.12747189]
[1773123411583,0.07861963,69872.0,69862.0,0.02116863]
[1773123411799,0.07717963,69872.0,69862.0,0.02116863]
[1773123412522,0.10156078,69871.0,69863.0,0.07156864]
[1773123413949,0.12201169,69871.0,69860.0,0.00144]
[1773123414206,0.03,69869.0,69859.0,0.07157273]
[1773123414400,0.05045091,69869.0,69859.0,0.07157273]
[1773123414800,0.03,69869.0,69855.0,0.07301617]
[1773123414990,0.03,69865.0,69855.0,0.07157617]
[1773123415181,0.03,69865.0,69852.0,0.02116863]
[1773123415182,0.03,69865.0,69852.0,0.07157977]
[1773123415506,0.05045091,69861.0,69852.0,0.07157977]
[1773123415722,0.03,69859.0,69856.0,0.0002]
[1773123416587,0.10157309,69859.0,69856.0,0.0002]
[1773123416787,0.122024,69859.0,69856.0,0.0002]
[1773123416985,0.03,69857.0,69849.0,0.07178196]
[1773123417682,0.03,69857.0,69849.0,0.0002]
[1773123418001,0.05112653,69855.0,69849.0,0.0002]
[1773123418648,0.12270402,69855.0,69849.0,0.0002]
[1773123420242,0.12414402,69855.0,69849.0,0.0002]
[1773123421878,0.10301749,69855.0,69849.0,0.0002]
[1773123423066,0.00144,69867.0,69852.0,0.11999603]
[1773123423243,0.00144,69869.0,69856.0,0.11999603]
[1773123423441,0.02112653,69868.0,69850.0,0.02031253]
[1773123423672,0.02112653,69868.0,69849.0,0.0002]
[1773123423886,0.02112653,69866.0,69849.0,0.0002]
[1773123424088,0.03,69863.0,69849.0,0.0002]
[1773123424289,0.03,69860.0,69849.0,0.07178298]
[1773123424489,0.03,69858.0,69839.0,0.07159225]
[1773123424857,0.03,69854.0,69843.0,0.07158913]
[1773123425470,0.03,69854.0,69845.0,0.02031253]
[1773123425680,0.03,69854.0,69846.0,0.02031253]
[1773123425858,0.03,69853.0,69846.0,0.02031253]
[1773123426221,0.03,69853.0,69846.0,0.09189789]
[1773123426840,0.03,69854.0,69846.0,0.07158536]
[1773123427455,0.03,69854.0,69845.0,0.07158606]
[1773123427614,0.03,69854.0,69846.0,0.02031253]
[1773123428036,0.03,69853.0,69846.0,0.02031253]
[1773123428433,0.03,69853.0,69845.0,0.07158606]
[1773123428657,0.03,69853.0,69842.0,0.07178811]
[1773123428867,0.05112653,69853.0,69842.0,0.07178811]
[1773123429300,0.03,69851.0,69842.0,0.07178811]
[1773123429505,0.03,69849.0,69842.0,0.0002]
[1773123430101,0.03,69845.0,69842.0,0.0002]
[1773123431212,0.03,69844.0,69842.0,0.0002]
[1773123431432,0.10158913,69843.0,69842.0,0.0002]
[1773123432852,0.09150907,69863.0,69843.0,0.12055201]
[1773123433087,0.03,69860.0,69844.0,0.02025488]
[1773123433557,0.03,69856.0,69844.0,0.09184275]
[1773123433796,0.00144,69855.0,69842.0,0.07178973]
[1773123434038,0.02138043,69855.0,69842.0,0.07178973]
[1773123434250,0.03,69854.0,69842.0,0.07178973]
[1773123434830,0.03,69854.0,69842.0,0.09204461]
[1773123435039,0.03,69853.0,69843.0,0.12055201]
[1773123435248,0.00144,69855.0,69846.0,0.02025488]
[1773123435473,0.00144,69856.0,69847.0,0.12055201]
[1773123435717,0.00144,69856.0,69847.0,0.14080689]
[1773123435891,0.01994043,69859.0,69846.0,0.07158542]
[1773123436094,0.02138043,69858.0,69844.0,0.07158807]
[1773123436337,0.03,69855.0,69844.0,0.07158807]
[1773123436545,0.03,69853.0,69844.0,0.07158807]
[1773123437507,0.03,69852.0,69844.0,0.07158807]
[1773123437696,0.03,69852.0,69843.0,0.07158913]
[1773123437899,0.03,69852.0,69843.0,0.07178913]
[1773123438497,0.03,69851.0,69843.0,0.09204401]
[1773123438728,0.07157683,69855.0,69844.0,0.02025488]
[1773123438940,0.07157683,69855.0,69845.0,0.02025488]
[1773123439161,0.07157683,69855.0,69843.0,0.07178913]
[1773123439462,0.01994043,69853.0,69843.0,0.07178913]
[1773123439710,0.10157991,69852.0,69843.0,0.0002]
[1773123441123,0.00144,69851.0,69843.0,0.0002]
[1773123441713,0.00144,69851.0,69844.0,0.02025488]
[1773123441927,0.07179524,69857.0,69844.0,0.02025488]
[1773123442134,0.00144,69856.0,69848.0,0.02025488]
[1773123444229,0.07301665,69856.0,69848.0,0.09183832]
[1773123444630,0.07301665,69856.0,69848.0,0.07158344]
[1773123445244,0.07301665,69856.0,69846.0,0.07158523]
[1773123446542,0.07323666,69856.0,69846.0,0.07158523]
[1773123446749,0.07277974,69856.0,69846.0,0.07158523]
[1773123447349,0.07277974,69856.0,69846.0,0.09184011]
[1773123450690,0.01994043,69855.0,69843.0,0.0002]
[1773123451340,0.07277974,69856.0,69838.0,0.07179422]
[1773123451341,0.01994043,69853.0,69838.0,0.0002]
[1773123451532,0.01994043,69851.0,69838.0,0.0002]
[1773123451731,0.02138043,69850.0,69838.0,0.0002]
[1773123451934,0.04994043,69849.0,69838.0,0.0002]
[1773123452333,0.03,69847.0,69838.0,0.0002]
[1773123453876,0.03,69843.0,69834.0,0.0002092]
[1773123454073,0.03,69837.0,69825.0,0.07183712]
[1773123454277,0.00144,69836.0,69825.0,0.07183712]
[1773123454575,0.03144,69837.0,69829.0,0.11690112]
[1773123454751,0.03144,69837.0,69830.0,0.02025488]
[1773123454949,0.10159533,69837.0,69830.0,0.02025488]
[1773123455773,0.10159533,69837.0,69836.0,0.0002]
[1773123456496,0.10159533,69837.0,69829.0,0.0002]
[1773123460625,0.10159533,69837.0,69829.0,0.0004705]
[1773123462464,0.1030335,69839.0,69830.0,0.02142671]
[1773123463640,0.1030335,69839.0,69830.0,0.02189721]
[1773123463871,0.10325351,69839.0,69830.0,0.02189721]
[1773123464608,0.10325351,69839.0,69830.0,0.0004705]
[1773123465282,0.10325351,69839.0,69826.0,0.09303244]
[1773123465283,0.03,69837.0,69820.0,0.02142671]
[1773123465483,0.03,69832.0,69820.0,0.07161268]
[1773123465608,0.03,69829.0,69820.0,0.06681268]
[1773123466475,0.10160441,69829.0,69819.0,0.09304022]
[1773123467062,0.10160441,69829.0,69819.0,0.07161351]
[1773123467265,0.03,69829.0,69820.0,0.02142671]
[1773123467514,0.00144,69832.0,69823.0,0.02142671]
[1773123468324,0.12629887,69833.0,69823.0,0.02142671]
[1773123468480,0.00144,69832.0,69823.0,0.02142671]
[1773123468815,0.10160102,69832.0,69824.0,0.07160861]
[1773123469020,0.10304102,69832.0,69824.0,0.07160861]
[1773123469766,0.10160102,69832.0,69824.0,0.07160861]
[1773123469970,0.10304102,69832.0,69824.0,0.07160861]
[1773123471523,0.10304102,69832.0,69823.0,0.09303634]
[1773123471904,0.10304102,69832.0,69824.0,0.0002]
[1773123476340,0.12466488,69832.0,69824.0,0.0002]
[1773123476663,0.10304102,69832.0,69824.0,0.0002]
[1773123477021,0.10160102,69832.0,69824.0,0.0002]
[1773123477222,0.00144,69831.0,69824.0,0.0002]
[1773123478231,0.03,69830.0,69824.0,0.0002]
[1773123480252,0.03,69830.0,69824.0,0.07180861]
[1773123481044,0.03,69829.0,69824.0,0.07180861]
[1773123481240,0.07159119,69841.0,69825.0,0.12376801]
[1773123481561,0.05613934,69840.0,69828.0,0.02101275]
[1773123481761,0.02162386,69839.0,69824.0,0.0002]
[1773123481970,0.03,69833.0,69824.0,0.0002]
[1773123482303,0.03,69831.0,69824.0,0.0002]
[1773123482484,0.03,69829.0,69824.0,0.0002]
[1773123483483,0.03,69830.0,69824.0,0.0002]
[1773123484030,0.03,69826.0,69824.0,0.0002]
[1773123485036,0.03,69832.0,69824.0,0.0002]
[1773123486604,0.10160141,69832.0,69824.0,0.0002]
[1773123488229,0.10160141,69832.0,69820.0,0.07161066]
[1773123488230,0.03,69830.0,69820.0,0.07161066]
[1773123488371,0.07160141,69832.0,69820.0,0.07161066]
[1773123488372,0.03,69828.0,69820.0,0.07161066]
[1773123488579,0.10160518,69828.0,69819.0,0.0716128]
[1773123488817,0.10160518,69828.0,69818.0,0.07161395]
[1773123488818,0.12404333,69828.0,69818.0,0.07161395]
[1773123489427,0.05243815,69828.0,69818.0,0.07161395]
[1773123489756,0.05387815,69828.0,69818.0,0.07161395]
[1773123490934,0.05387815,69828.0,69818.0,0.19624143]
[1773123493987,0.03144,69828.0,69818.0,0.19624143]
[1773123495238,0.00144,69828.0,69818.0,0.19624143]
[1773123495416,0.0715984,69834.0,69819.0,0.12462748]
[1773123495630,0.00144,69833.0,69819.0,0.12462748]
[1773123495929,0.07303966,69833.0,69820.0,0.07161271]
[1773123496079,0.07159966,69833.0,69821.0,0.12462748]
[1773123496279,0.03144,69832.0,69821.0,0.12462748]
[1773123496629,0.03,69832.0,69821.0,0.12462748]
[1773123497391,0.03,69831.0,69821.0,0.12462748]
[1773123498049,0.08473136,69831.0,69822.0,0.07161066]
[1773123498250,0.03,69831.0,69822.0,0.07161066]
[1773123498454,0.00022001,69837.0,69822.0,0.07305066]
[1773123498658,0.07303272,69840.0,69823.0,0.12462748]
[1773123499634,0.03,69839.0,69823.0,0.12462748]
[1773123500041,0.03,69839.0,69825.0,0.12462748]
[1773123500262,0.07180607,69846.0,69824.0,0.07160861]
[1773123500263,0.00023,69850.0,69830.0,0.12462748]
[1773123500392,0.00022001,69851.0,69832.0,0.12462748]
[1773123501567,0.00022001,69855.0,69840.0,0.05473136]
[1773123501773,0.07323015,69862.0,69849.0,0.12462748]
[1773123501964,0.07179015,69862.0,69850.0,0.07158196]
[1773123502263,0.07179015,69862.0,69851.0,0.12462748]
[1773123502613,0.03,69861.0,69851.0,0.12462748]
[1773123503174,0.0301378,69861.0,69851.0,0.12462748]
[1773123503547,0.03,69860.0,69851.0,0.12462748]
[1773123503763,0.00022001,69862.0,69851.0,0.12462748]
[1773123504584,0.00022001,69862.0,69852.0,0.07157991]
[1773123504777,0.00022001,69863.0,69853.0,0.12462748]
[1773123504991,0.00144,69866.0,69854.0,0.00144]
[1773123505192,0.00144,69866.0,69855.0,0.12462748]
[1773123505581,0.03,69866.0,69855.0,0.12462748]
[1773123506355,0.00023,69875.0,69854.0,0.00144]
[1773123506555,0.00023,69875.0,69861.0,0.19619817]
[1773123506757,0.03023,69875.0,69862.0,0.12606748]
[1773123507110,0.05280962,69875.0,69862.0,0.12606748]
[1773123508597,0.05280962,69875.0,69863.0,0.07156864]
[1773123508841,0.03,69874.0,69864.0,0.12462748]
[1773123509466,0.00022001,69876.0,69864.0,0.12462748]
[1773123512112,0.00022001,69876.0,69866.0,0.02203539]
[1773123514354,0.00022001,69876.0,69867.0,0.07156454]
[1773123514514,0.00022001,69876.0,69867.0,0.09355817]
[1773123515271,0.00022001,69876.0,69867.0,0.07156454]
[1773123515471,0.00022001,69876.0,69868.0,0.02199363]
[1773123516236,0.00144,69877.0,69869.0,0.02195124]
[1773123516735,0.00144,69877.0,69870.0,0.07156147]
[1773123516960,0.03,69876.0,69868.0,0.07156147]
[1773123517158,0.03,69876.0,69870.0,0.07156147]
[1773123517360,0.03,69876.0,69871.0,0.02195124]
[1773123517985,0.00144,69877.0,69871.0,0.02195124]
[1773123518786,0.00144,69877.0,69865.0,0.09347535]
[1773123519029,0.03144,69877.0,69865.0,0.09347535]
[1773123519403,0.14289135,69875.0,69859.0,0.07157237]
[1773123519606,0.14289135,69875.0,69859.0,0.07301237]
[1773123519806,0.14289135,69875.0,69860.0,0.02190876]
[1773123520634,0.03,69874.0,69860.0,0.02190876]
[1773123520831,0.14268731,69874.0,69860.0,0.02190876]
[1773123521247,0.03,69869.0,69861.0,0.07157069]
[1773123521594,0.03,69869.0,69864.0,0.0002]
[1773123522178,0.00144,69871.0,69864.0,0.0002]
[1773123524150,0.03,69869.0,69864.0,0.0002]
[1773123526042,0.03,69868.0,69864.0,0.0002]
[1773123527448,0.03,69867.0,69864.0,0.0002]
[1773123528651,0.03,69869.0,69864.0,0.0002]
[1773123528942,0.00022001,69876.0,69865.0,0.11085832]
[1773123529163,0.00022001,69876.0,69866.0,0.11085832]
[1773123529370,0.00022001,69876.0,69867.0,0.02185766]
[1773123531293,0.00022001,69876.0,69868.0,0.07156351]
[1773123531496,0.00022001,69876.0,69868.0,0.09337729]
[1773123531696,0.00022001,69876.0,69868.0,0.07156351]
[1773123531879,0.00022001,69876.0,69869.0,0.02181378]
[1773123532080,0.03,69875.0,69866.0,0.07156517]
[1773123532254,0.03,69875.0,69865.0,0.07156642]
[1773123533073,0.03,69874.0,69865.0,0.07156642]
[1773123533292,0.03,69874.0,69865.0,0.09333946]
[1773123533654,0.03,69874.0,69865.0,0.07156642]
[1773123533855,0.03,69874.0,69866.0,0.02177304]
[1773123534330,0.03,69873.0,69866.0,0.02177304]
[1773123534693,0.00022001,69876.0,69866.0,0.02177304]
[1773123535445,0.03022001,69876.0,69868.0,0.02172908]
[1773123537209,0.03,69875.0,69868.0,0.02172908]
[1773123537409,0.03,69875.0,69870.0,0.02168508]
[1773123537610,0.11300379,69888.0,69872.0,0.02168508]
[1773123537822,0.00144,69888.0,69876.0,0.02168508]
[1773123538021,0.07154292,69889.0,69876.0,0.02168508]
[1773123538220,0.03,69888.0,69876.0,0.02168508]
[1773123538467,0.03144,69888.0,69876.0,0.02168508]
[1773123538698,0.10298328,69888.0,69876.0,0.02168508]
[1773123538997,0.10154328,69888.0,69876.0,0.02168508]
[1773123539148,0.10298328,69888.0,69876.0,0.02168508]
[1773123539351,0.10154328,69888.0,69876.0,0.02168508]
[1773123539550,0.03,69888.0,69878.0,0.02164772]
[1773123540365,0.10154349,69888.0,69878.0,0.02164772]
[1773123540573,0.03,69886.0,69877.0,0.0715543]
[1773123540997,0.11661137,69882.0,69862.0,0.02160353]
[1773123541172,0.03,69871.0,69857.0,0.07177462]
[1773123541376,0.00049403,69866.0,69850.0,0.07201119]
[1773123541557,0.21817898,69864.0,69850.0,0.07201188]
[1773123541983,0.03,69864.0,69851.0,0.02160353]
[1773123542366,0.07155327,69878.0,69857.0,0.0002]
[1773123542568,0.03,69877.0,69859.0,0.02187344]
[1773123542908,0.00144,69876.0,69859.0,0.02187344]
[1773123543114,0.03144,69877.0,69861.0,0.11264499]
[1773123543330,0.03144,69877.0,69860.0,0.05617136]
[1773123543331,0.03144,69877.0,69864.0,0.02187344]
[1773123543490,0.03,69875.0,69865.0,0.07156659]
[1773123544484,0.03,69875.0,69861.0,0.07157031]
[1773123544886,0.03,69874.0,69862.0,0.02214332]
[1773123545389,0.03144,69874.0,69862.0,0.02214332]
[1773123545607,0.03,69874.0,69864.0,0.02214332]
[1773123545805,0.00144,69875.0,69864.0,0.02214332]
[1773123547095,0.18054507,69881.0,69863.0,0.07156864]
[1773123547096,0.07154815,69883.0,69865.0,0.11105942]
[1773123547285,0.07176755,69884.0,69868.0,0.02210272]
[1773123547520,0.00022001,69884.0,69872.0,0.02210272]
[1773123547643,0.07176721,69884.0,69872.0,0.02210272]
[1773123547843,0.07176721,69884.0,69872.0,0.02041024]
[1773123548045,0.03,69883.0,69872.0,0.02041024]
[1773123548492,0.03,69883.0,69873.0,0.00144]
[1773123548652,0.03,69883.0,69874.0,0.02128062]
[1773123549053,0.10197058,69890.0,69875.0,0.02128062]
[1773123549308,0.10197058,69890.0,69876.0,0.02128062]
[1773123549513,0.21096483,69890.0,69877.0,0.0715543]
[1773123549723,0.00022001,69881.0,69877.0,0.0715543]
[1773123549922,0.00022001,69881.0,69877.0,0.09283492]
[1773123550360,0.00022001,69881.0,69878.0,0.02208231]
[1773123553196,0.00022001,69888.0,69879.0,0.07155225]
[1773123553197,0.00017457,69888.0,69879.0,0.07155225]
[1773123555307,0.00017457,69888.0,69876.0,0.07155526]
[1773123556699,0.00022001,69881.0,69876.0,0.07155526]
[1773123556901,0.00022001,69881.0,69876.0,0.09366809]
[1773123560052,0.00022001,69881.0,69875.0,0.07155532]
[1773123562130,0.00022001,69881.0,69874.0,0.00144]
[1773123562667,0.00022001,69881.0,69873.0,0.09351771]
[1773123563164,0.00022001,69881.0,69873.0,0.07155744]
[1773123563775,0.00032271,69881.0,69873.0,0.07155744]
[1773123569547,0.03,69880.0,69872.0,0.07155942]
[1773123569748,0.03764119,69880.0,69866.0,0.07300493]
[1773123569954,0.03,69878.0,69866.0,0.07300493]
[1773123570670,0.03,69876.0,69866.0,0.07300493]
[1773123570873,0.03,69876.0,69867.0,0.02052027]
[1773123571282,0.03,69876.0,69873.0,0.0002]
[1773123571838,0.0301027,69876.0,69873.0,0.0002]
[1773123572489,0.0311027,69876.0,69873.0,0.0002]
[1773123573323,0.07155635,69875.0,69866.0,0.07176493]
[1773123573521,0.03,69874.0,69865.0,0.07156597]
[1773123574548,0.03,69874.0,69866.0,0.07156512]
[1773123575431,0.03,69874.0,69864.0,0.07156556]
[1773123576553,0.03,69874.0,69864.0,0.09208583]
[1773123577560,0.1015578,69874.0,69864.0,0.09208583]
[1773123579082,0.03,69874.0,69864.0,0.09208583]
[1773123579515,0.10155749,69874.0,69864.0,0.09208583]
[1773123579793,0.10956439,69874.0,69864.0,0.09208583]
[1773123579977,0.10956439,69874.0,69864.0,0.09228583]
[1773123580791,0.0380069,69874.0,69864.0,0.09228583]
[1773123581111,0.21721249,69874.0,69864.0,0.07176556]
[1773123581467,0.21865249,69874.0,69864.0,0.0002]
[1773123581700,0.03,69870.0,69862.0,0.07176947]
[1773123582412,0.03,69870.0,69862.0,0.09350652]
[1773123582617,0.03,69873.0,69862.0,0.07176947]
[1773123582917,0.03,69873.0,69862.0,0.09350652]
[1773123583718,0.03,69871.0,69862.0,0.09350652]
[1773123584701,0.03,69871.0,69862.0,0.07176947]
[1773123584900,0.03,69871.0,69863.0,0.02169424]
[1773123585513,0.03,69869.0,69855.0,0.0002]
[1773123585716,0.03,69865.0,69855.0,0.0002]
[1773123586753,0.07300351,69868.0,69855.0,0.0002]
[1773123586754,0.03,69864.0,69855.0,0.0002]
[1773123586933,0.03,69864.0,69858.0,0.02165184]
[1773123587704,0.03,69863.0,69858.0,0.02185184]
[1773123588414,0.03,69863.0,69858.0,0.0002]
[1773123589555,0.03,69863.0,69855.0,0.0002]
[1773123590060,0.03,69861.0,69855.0,0.0002]
[1773123590416,0.03,69861.0,69851.0,0.0002]
[1773123590417,0.03,69861.0,69851.0,0.00164]
[1773123590655,0.14106548,69861.0,69851.0,0.00164]
[1773123590856,0.03,69861.0,69851.0,0.07322048]
[1773123591069,0.03,69861.0,69851.0,0.09335353]
[1773123591769,0.031,69861.0,69851.0,0.09335353]
[1773123592284,0.03,69859.0,69851.0,0.02177305]
[1773123594031,0.14106548,69859.0,69851.0,0.0002]
[1773123594190,0.03,69857.0,69844.0,0.00582]
[1773123594435,0.03,69853.0,69844.0,0.00582]
[1773123594630,0.03,69853.0,69839.0,0.02292834]
[1773123594836,0.03,69851.0,69837.0,0.07179841]
[1773123595085,0.14106548,69849.0,69837.0,0.0002038]
[1773123595425,0.14106548,69849.0,69837.0,0.07179905]
[1773123595746,0.14106548,69849.0,69844.0,0.0002]
[1773123595949,0.14106548,69849.0,69837.0,0.07199905]
[1773123596379,0.03,69847.0,69837.0,0.07199905]
[1773123596574,0.03,69847.0,69837.0,0.0004038]
[1773123596785,0.14106548,69847.0,69837.0,0.0004038]
[1773123597478,0.03,69847.0,69838.0,0.02144533]
[1773123598249,0.03,69845.0,69838.0,0.02144533]
[1773123601018,0.03,69843.0,69838.0,0.02144533]
[1773123601195,0.03,69843.0,69837.0,0.0004038]
[1773123601403,0.03,69843.0,69836.0,0.0002]
[1773123601603,0.07158811,69844.0,69830.0,0.0002]
[1773123601604,0.08465803,69841.0,69830.0,0.0002]
[1773123602026,0.19572351,69841.0,69830.0,0.0002]
[1773123602241,0.11106548,69838.0,69826.0,0.00144]
[1773123602569,0.03,69837.0,69826.0,0.00144]
[1773123602962,0.03,69835.0,69831.0,0.0002]
[1773123603595,0.10565784,69835.0,69831.0,0.0002]
[1773123603775,0.10565784,69853.0,69832.0,0.02277196]
[1773123603990,0.00144,69852.0,69835.0,0.02133196]
[1773123604187,0.00144,69851.0,69835.0,0.02133196]
[1773123605000,0.03,69849.0,69836.0,0.07303537]
[1773123605209,0.03,69849.0,69837.0,0.02128893]
[1773123605498,0.03,69849.0,69841.0,0.02128893]
[1773123607726,0.03,69847.0,69841.0,0.02128893]
[1773123610340,0.03,69845.0,69841.0,0.02128893]
[1773123612332,0.03,69845.0,69837.0,0.02139675]
[1773123612333,0.03,69843.0,69837.0,0.02139675]
[1773123612609,0.03,69843.0,69837.0,0.02135675]
[1773123613469,0.03,69842.0,69837.0,0.02135675]
[1773123614074,0.03,69842.0,69838.0,0.02137675]
[1773123614474,0.07158783,69845.0,69838.0,0.02137675]
[1773123614475,0.03,69841.0,69838.0,0.02137675]
[1773123614891,0.03,69841.0,69836.0,0.07159586]
[1773123615094,0.07158832,69844.0,69836.0,0.07159586]
[1773123615302,0.07158832,69844.0,69837.0,0.02135241]
[1773123615511,0.03,69843.0,69837.0,0.02135241]
[1773123616597,0.03,69842.0,69839.0,0.02130822]
[1773123617503,0.03,69844.0,69839.0,0.02130822]
[1773123617937,0.10158811,69844.0,69839.0,0.02130822]
[1773123618141,0.03,69844.0,69839.0,0.02130822]
[1773123621584,0.03,69844.0,69830.0,0.0002]
[1773123621585,0.03,69842.0,69830.0,0.0002]
[1773123621800,0.13565784,69840.0,69830.0,0.0002]
[1773123622348,0.13565784,69840.0,69824.0,0.07180815]
[1773123622553,0.03,69838.0,69824.0,0.0002]
[1773123622732,0.05469565,69841.0,69824.0,0.0002]
[1773123622733,0.13565784,69836.0,69824.0,0.0002]
[1773123622929,0.03,69836.0,69824.0,0.0002]
[1773123623133,0.03,69834.0,69824.0,0.0002]
[1773123623331,0.03,69832.0,69824.0,0.0002]
[1773123624120,0.03,69832.0,69825.0,0.00023]
[1773123625367,0.03,69830.0,69825.0,0.00023]
[1773123625790,0.03,69830.0,69826.0,0.0211319]
[1773123626007,0.07159888,69834.0,69826.0,0.0211319]
[1773123626419,0.03,69833.0,69826.0,0.0211319]
[1773123627523,0.03,69834.0,69826.0,0.0211319]
[1773123628723,0.07159831,69835.0,69826.0,0.0211319]
[1773123628724,0.03,69832.0,69826.0,0.0211319]
[1773123631168,0.10160106,69832.0,69826.0,0.0211319]
[1773123631859,0.10160106,69832.0,69824.0,0.0002]
[1773123633062,0.10160106,69832.0,69816.0,0.07746054]
[1773123633063,0.2072589,69832.0,69818.0,0.02127305]
[1773123633272,0.08469565,69830.0,69819.0,0.00144]
[1773123633468,0.08469565,69830.0,69819.0,0.00164]
[1773123633668,0.03,69830.0,69819.0,0.00164]
[1773123635297,0.03,69830.0,69816.0,0.07746046]
[1773123635298,0.03,69827.0,69816.0,0.00144]
[1773123635657,0.03,69827.0,69816.0,0.02266788]
[1773123637294,0.03,69825.0,69816.0,0.02266788]
[1773123638109,0.03,69825.0,69816.0,0.02122788]
[1773123638309,0.03,69825.0,69817.0,0.00144]
[1773123638966,0.14467183,69825.0,69810.0,0.00144]
[1773123639166,0.03,69825.0,69811.0,0.02132063]
[1773123639353,0.03,69823.0,69811.0,0.02132063]
[1773123639613,0.16936748,69840.0,69813.0,0.11298431]
[1773123639779,0.05469565,69830.0,69812.0,0.02132063]
[1773123639999,0.16936748,69830.0,69813.0,0.02276063]
[1773123640566,0.03,69829.0,69813.0,0.02276063]
[1773123640972,0.03144,69829.0,69813.0,0.02276063]
[1773123641516,0.03,69827.0,69813.0,0.02276063]
[1773123641671,0.03,69827.0,69813.0,0.02296063]
[1773123641870,0.03,69827.0,69813.0,0.02152063]
[1773123642039,0.03,69827.0,69814.0,0.02271482]
[1773123643922,0.03,69825.0,69814.0,0.02127482]
[1773123644123,0.03,69825.0,69815.0,0.00144]
[1773123645115,0.03,69825.0,69813.0,0.00164]
[1773123645372,0.03,69825.0,69813.0,0.02100124]
[1773123646555,0.03,69823.0,69813.0,0.11462431]
[1773123646793,0.03,69823.0,69814.0,0.01936124]
[1773123646969,0.03,69823.0,69815.0,0.00144]
[1773123648719,0.03,69828.0,69817.0,0.02145408]
[1773123649995,0.031,69828.0,69817.0,0.02145408]
[1773123650809,0.03,69826.0,69818.0,0.02140694]
[1773123655053,0.07160553,69827.0,69818.0,0.02140694]
[1773123655054,0.03,69824.0,69818.0,0.02140694]
[1773123655730,0.07160653,69828.0,69819.0,0.11026831]
[1773123655952,0.07160653,69828.0,69820.0,0.02144419]
[1773123656164,0.03,69827.0,69820.0,0.02144419]
[1773123656558,0.03,69827.0,69821.0,0.00144]
[1773123656969,0.03,69827.0,69815.0,0.11046831]
[1773123657205,0.03,69825.0,69816.0,0.02189744]
[1773123657504,0.03,69825.0,69817.0,0.00144]
[1773123660186,0.10160827,69825.0,69817.0,0.00144]
[1773123661543,0.03,69827.0,69817.0,0.00144]
[1773123665718,0.03,69825.0,69817.0,0.00144]
[1773123667148,0.03,69825.0,69811.0,0.080069]
[1773123667330,0.02006809,69816.0,69806.0,0.00144]
[1773123667527,0.03,69814.0,69803.0,0.00144]
[1773123667696,0.03,69812.0,69803.0,0.00144]
[1773123670051,0.02006809,69817.0,69803.0,0.00144]
[1773123670052,0.0716155,69818.0,69814.0,0.0002]
[1773123670253,0.0716155,69818.0,69805.0,0.0214724]
[1773123670754,0.0716155,69818.0,69807.0,0.0002]
[1773123671162,0.03,69817.0,69807.0,0.0002]
[1773123671971,0.07161075,69822.0,69810.0,0.0214724]
[1773123672153,0.03,69821.0,69812.0,0.0214724]
[1773123673544,0.03,69819.0,69812.0,0.0214724]
[1773123673941,0.07161001,69823.0,69813.0,0.0214724]
[1773123674145,0.07160861,69824.0,69814.0,0.0214724]
[1773123674441,0.07160861,69824.0,69811.0,0.00144]
[1773123674442,0.03,69823.0,69811.0,0.00144]
[1773123675091,0.031,69823.0,69811.0,0.00144]
[1773123675285,0.031,69823.0,69812.0,0.00144]
[1773123675487,0.03,69821.0,69812.0,0.00144]
[1773123675687,0.03,69819.0,69807.0,0.07182592]
[1773123675884,0.03,69817.0,69808.0,0.00144]
[1773123677029,0.03,69821.0,69808.0,0.00144]